bitfinex/quotes_SOLUSD_20241010
["timestamp","ask_amount","ask_price","bid_price","bid_amount"]
[1728586334952,7.45159,136.5,136.46,7.3276]
[1728586335139,7.45159,136.5,136.45,25.649]
[1728586335140,0.12549,136.48,136.45,25.649]
[1728586335342,0.12549,136.48,136.41,36.6518]
[1728586335545,0.12549,136.47,136.44,7.3292]
[1728586336038,0.12549,136.47,136.45,7.3285]
[1728586336235,0.12549,136.47,136.45,8.79398205]
[1728586336440,0.12549,136.47,136.45,7.3285]
[1728586336645,0.12549,136.47,136.45,8.79400457]
[1728586337031,0.12549,136.47,136.45,7.3285]
[1728586337557,0.12549,136.47,136.46,7.3281]
[1728586337935,0.12549,136.47,136.45,7.3285]
[1728586338143,0.12549,136.47,136.45,8.79400606]
[1728586338450,0.12549,136.47,136.46,7.3281]
[1728586338642,0.25098,136.49,136.47,7.3276]
[1728586338847,1.09921914,136.5,136.49,31.103384]
[1728586339062,1.09921914,136.5,136.49,61.103384]
[1728586339232,1.09868821,136.57,136.56,7.3227]
[1728586339733,1.09868821,136.57,136.56,8.78719249]
[1728586340034,1.09868821,136.57,136.56,7.3227]
[1728586340664,1.09868821,136.57,136.56,8.78706639]
[1728586341340,1.09868821,136.57,136.56,7.3227]
[1728586341654,1.09868821,136.57,136.56,8.78709369]
[1728586342442,1.09868821,136.57,136.56,32.56397769]
[1728586344433,15.3602,136.64,136.56,25.24127769]
[1728586344652,10.77050957,136.65,136.61,18.2997]
[1728586344853,10.77050957,136.65,136.63,7.319]
[1728586346042,10.77050957,136.65,136.62,1.46374265]
[1728586346043,10.77050957,136.65,136.62,7.3195]
[1728586346241,11.86883426,136.65,136.62,7.3195]
[1728586346444,0.25098,136.64,136.62,7.3195]
[1728586347039,0.25098,136.64,136.61,18.2997]
[1728586347239,7.56958,136.64,136.59,7.321]
[1728586347536,7.3199,136.62,136.58,18.3033]
[1728586347739,0.25098,136.6,136.55,18.3073]
[1728586347941,0.25098,136.6,136.56,37.3226]
[1728586348139,0.25098,136.6,136.56,7.3226]
[1728586348644,7.57178,136.6,136.56,7.3226]
[1728586351446,0.25098,136.6,136.57,7.3221]
[1728586352067,0.25098,136.6,136.59,7.3211]
[1728586353062,0.12549,136.6,136.59,7.3211]
[1728586353263,6.5495,136.64,136.6,7.3201]
[1728586353636,13.868,136.64,136.6,7.3201]
[1728586353831,7.3195,136.62,136.58,7.3215]
[1728586354149,7.319,136.63,136.59,7.321]
[1728586354550,0.25098,136.62,136.59,7.321]
[1728586357456,0.12549,136.61,136.58,25.6252]
[1728586357639,0.25098,136.61,136.58,25.6252]
[1728586358045,0.25098,136.6,136.58,18.3037]
[1728586359163,0.25098,136.6,136.58,25.6254]
[1728586359668,7.57158,136.6,136.57,7.3221]
[1728586359870,8.67013942,136.6,136.55,18.3071]
[1728586360066,8.67013942,136.6,136.56,7.3225]
[1728586360255,1.34953942,136.6,136.56,1.46437022]
[1728586360571,1.34953942,136.6,136.59,7.3211]
[1728586360572,1.22404942,136.6,136.59,7.3211]
[1728586363644,1.22404942,136.6,136.57,18.3055]
[1728586365447,1.22404942,136.6,136.59,7.3211]
[1728586367864,0.25098,136.61,136.58,7.3214]
[1728586368176,7.57148,136.61,136.57,25.6274]
[1728586369079,0.12549,136.59,136.57,25.6274]
[1728586370872,0.12549,136.6,136.57,25.6274]
[1728586371675,0.12549,136.59,136.55,7.3229]
[1728586371863,0.12549,136.58,136.55,7.3229]
[1728586373467,7.44749,136.58,136.54,25.6318]
[1728586373671,0.25098,136.56,136.53,7.324]
[1728586374752,0.25098,136.56,136.53,25.6348]
[1728586374963,0.25098,136.56,136.52,38.08858666]
[1728586374964,23.2306,136.63,136.57,18.3054]
[1728586375159,7.3196,136.62,136.58,7.3216]
[1728586375600,7.3196,136.62,136.58,7.3213]
[1728586375764,30.5498,136.63,136.59,7.3208]
[1728586375965,23.2306,136.63,136.6,7.3206]
[1728586376177,23.9536,136.63,136.6,7.3206]
[1728586376475,23.9536,136.63,136.59,1.46406921]
[1728586376690,16.6346,136.63,136.6,7.3206]
[1728586379056,18.08708689,136.65,136.6,7.3206]
[1728586379259,10.76898689,136.65,136.6,7.3206]
[1728586379585,10.76898689,136.65,136.6,29.86034347]
[1728586380175,10.76898689,136.65,136.6,7.3206]
[1728586380888,18.08698689,136.65,136.6,7.3206]
[1728586381887,7.3197,136.62,136.58,25.6244]
[1728586382063,7.3192,136.63,136.59,7.3208]
[1728586382870,7.3196,136.62,136.58,25.6244]
[1728586383092,7.3192,136.63,136.59,7.3211]
[1728586384193,1.22404927,136.61,136.6,8.78460662]
[1728586384789,1.09855927,136.61,136.6,8.78460662]
[1728586385195,1.09855927,136.61,136.6,7.3206]
[1728586388097,17.98554616,136.65,136.61,7.32]
[1728586389170,0.12549,136.64,136.61,7.32]
[1728586390487,0.25098,136.64,136.61,7.32]
[1728586391488,7.56948,136.64,136.6,27.08532818]
[1728586391662,7.56948,136.64,136.6,25.6216]
[1728586391863,0.25098,136.64,136.57,18.3043]
[1728586392081,0.12549,136.61,136.58,37.3213]
[1728586392261,0.12549,136.61,136.59,7.3211]
[1728586393193,0.12549,136.61,136.59,8.78510555]
[1728586393495,0.25098,136.62,136.59,8.78510555]
[1728586394079,0.25098,136.62,136.59,7.3211]
[1728586394365,10.66754616,136.65,136.58,1.46400547]
[1728586394588,10.66754616,136.65,136.6,18.3013]
[1728586394886,17.98544616,136.65,136.61,7.3199]
[1728586395797,0.12549,136.64,136.61,7.3199]
[1728586395977,0.12549,136.64,136.61,8.78364962]
[1728586396297,0.12549,136.64,136.61,1.46374962]
[1728586396499,11.76577137,136.65,136.63,7.319]
[1728586396702,11.76577137,136.65,136.63,8.78262943]
[1728586396993,11.76577137,136.65,136.63,7.319]
[1728586397981,11.76577137,136.65,136.64,7.3185]
[1728586398185,11.89126137,136.65,136.64,7.3185]
[1728586398893,11.89126137,136.65,136.63,7.3187]
[1728586400388,11.89126137,136.65,136.63,8.78229089]
[1728586400628,11.76577137,136.65,136.64,7.3185]
[1728586400802,1.09822521,136.65,136.64,7.3185]
[1728586400974,1.09822521,136.65,136.64,37.3185]
[1728586401674,1.09822521,136.65,136.64,61.095384]
[1728586402387,1.09822521,136.65,136.64,7.3185]
[1728586403004,1.09822521,136.65,136.62,33.5402]
[1728586403005,1.09822521,136.65,136.63,7.3188]
[1728586404611,1.09822521,136.65,136.64,8.78199397]
[1728586406100,1.09822521,136.65,136.64,32.55887797]
[1728586406819,1.09822521,136.65,136.64,31.095384]
[1728586406982,1.09822521,136.65,136.64,7.3185]
[1728586410007,1.02504556,136.65,136.64,7.3185]
[1728586411382,0.12549,136.64,136.63,7.3187]
[1728586411696,7.44409,136.64,136.6,7.3204]
[1728586411892,7.44409,136.64,136.6,37.3204]
[1728586412096,0.12549,136.64,136.61,8.78378244]
[1728586413321,0.12549,136.64,136.63,7.319]
[1728586413481,1.02504556,136.65,136.64,7.3185]
[1728586413695,1.15053556,136.65,136.64,7.3185]
[1728586414394,1.02504556,136.65,136.64,7.3185]
[1728586415915,1.02504556,136.65,136.64,31.095384]
[1728586416510,1.02504556,136.65,136.64,62.55866305]
[1728586417409,1.02504556,136.65,136.64,32.55866305]
[1728586418393,1.02504556,136.65,136.64,62.55866305]
[1728586419490,1.02504556,136.65,136.64,61.095384]
[1728586421009,1.02504556,136.65,136.64,31.095384]
[1728586423145,1.02504556,136.65,136.62,18.2988]
[1728586423423,1.02504556,136.65,136.64,7.3185]
[1728586426422,1.02504556,136.65,136.62,25.6181]
[1728586427124,1.02504556,136.65,136.63,7.319]
[1728586430816,10.76454179,136.7,136.64,1.46352401]
[1728586431020,0.25098,136.69,136.65,7.3175]
[1728586431211,0.12549,136.67,136.64,25.6132]
[1728586432817,7.44239,136.67,136.64,18.295]
[1728586433141,0.12549,136.64,136.61,25.6189]
[1728586434418,0.12549,136.65,136.61,25.6189]
[1728586434616,0.12549,136.63,136.61,25.6189]
[1728586434815,0.12549,136.63,136.61,18.2991]
[1728586435019,0.12549,136.63,136.62,7.3195]
[1728586435320,0.12549,136.65,136.63,7.3189]
[1728586435621,0.12549,136.65,136.62,8.78300196]
[1728586436903,0.12549,136.65,136.62,7.3193]
[1728586437403,7.3185,136.64,136.61,25.6189]
[1728586437605,7.44449,136.63,136.6,7.3205]
[1728586438022,0.12549,136.63,136.6,7.3205]
[1728586438922,0.12549,136.63,136.6,27.08577012]
[1728586439125,1.0981844,136.64,136.6,19.76527012]
[1728586439303,0.12549,136.63,136.62,7.3191]
[1728586439729,1.0981844,136.64,136.62,1.46379094]
[1728586439923,1.0981844,136.64,136.63,7.319]
[1728586440124,1.2236744,136.64,136.63,7.319]
[1728586440319,1.2236744,136.64,136.62,25.6182]
[1728586440828,0.12549,136.63,136.58,23.776884]
[1728586441031,0.12549,136.63,136.59,55.6227]
[1728586441032,7.56998,136.63,136.59,55.6227]
[1728586441329,0.12549,136.63,136.6,1.46395385]
[1728586441534,0.12549,136.63,136.61,25.6198]
[1728586443027,1.0981844,136.64,136.63,7.319]
[1728586443403,1.0981844,136.64,136.63,31.095884]
[1728586443608,1.0981844,136.64,136.63,53.6316292]
[1728586444220,1.09792341,136.68,136.67,7.3168]
[1728586444624,8.41432341,136.68,136.64,7.3183]
[1728586444929,8.41432341,136.68,136.66,7.3173]
[1728586444930,1.09792341,136.68,136.66,7.3173]
[1728586445717,1.09792341,136.68,136.67,7.3168]
[1728586457643,1.09792341,136.68,136.66,7.3172]
[1728586457831,1.09792341,136.68,136.65,25.6122]
[1728586458936,1.09792341,136.68,136.66,7.3173]
[1728586461143,1.09792341,136.68,136.65,25.6123]
[1728586461350,8.41432341,136.68,136.65,25.6123]
[1728586461858,1.09792341,136.68,136.65,25.6123]
[1728586465347,1.09792341,136.68,136.65,18.2945]
[1728586465528,1.09792341,136.68,136.66,7.3172]
[1728586466149,1.09792341,136.68,136.65,18.2945]
[1728586466352,1.09792341,136.68,136.65,25.6122]
[1728586467148,1.09792341,136.68,136.65,18.2945]
[1728586467351,7.44269,136.67,136.63,7.3188]
[1728586470057,7.44269,136.67,136.64,7.3184]
[1728586470350,0.12549,136.67,136.64,7.3184]
[1728586470558,0.12549,136.67,136.65,1.46345794]
[1728586470850,0.12549,136.67,136.64,8.78183024]
[1728586471641,0.12549,136.67,136.63,18.2963]
[1728586471848,0.12549,136.67,136.65,7.3177]
[1728586473756,1.09792341,136.68,136.66,7.3174]
[1728586474254,1.22341341,136.68,136.67,7.3168]
[1728586475695,1.22341341,136.68,136.66,8.78046856]
[1728586475958,1.22341341,136.68,136.66,8.78044745]
[1728586476360,7.3149,136.71,136.67,7.3168]
[1728586476571,0.12549,136.7,136.67,7.3168]
[1728586479765,1.09783228,136.71,136.68,18.2905]
[1728586479940,1.09783228,136.71,136.7,7.3152]
[1728586485776,1.09783228,136.71,136.7,45.49861328]
[1728586487388,13.9601,136.78,136.74,7.3128]
[1728586487673,13.9601,136.78,136.74,8.77522767]
[1728586488196,13.9601,136.78,136.74,7.3127]
[1728586488749,7.3116,136.77,136.74,7.3127]
[1728586488961,7.3116,136.77,136.73,25.5965]
[1728586489568,0.12549,136.76,136.73,25.5965]
[1728586490279,7.3124,136.76,136.73,18.283]
[1728586490569,0.12549,136.74,136.72,7.3138]
[1728586491377,0.12549,136.75,136.72,7.3138]
[1728586495967,0.12549,136.75,136.72,25.5993]
[1728586497586,0.12549,136.75,136.73,7.3136]
[1728586499084,0.12549,136.76,136.73,7.3136]
[1728586501091,7.43759,136.76,136.73,7.3136]
[1728586502889,0.12549,136.77,136.74,7.3127]
[1728586503089,7.74623653,136.78,136.74,1.46241952]
[1728586503295,1.09723653,136.78,136.74,1.46241952]
[1728586503496,1.09723653,136.78,136.77,7.3115]
[1728586503667,1.09723653,136.78,136.77,8.77360419]
[1728586504170,1.09723653,136.78,136.77,7.3115]
[1728586504792,0.8436388,136.81,136.77,7.3115]
[1728586504973,0.8436388,136.81,136.78,7.3107]
[1728586505596,0.12549,136.8,136.78,7.3107]
[1728586506098,7.56088,136.8,136.75,7.3121]
[1728586506603,0.12549,136.78,136.75,7.3121]
[1728586506776,0.12549,136.78,136.74,48.2816]
[1728586506976,0.12549,136.78,136.75,7.3121]
[1728586507993,7.43649,136.78,136.75,7.3121]
[1728586508197,7.43649,136.78,136.74,25.5946]
[1728586508372,7.43649,136.78,136.75,7.3126]
[1728586508572,7.43649,136.78,136.74,25.5944]
[1728586508792,7.43649,136.78,136.75,7.3125]
[1728586509290,7.43659,136.78,136.74,25.5945]
[1728586509688,0.12549,136.77,136.74,18.2816]
[1728586509890,0.12549,136.76,136.73,7.3134]
[1728586511680,0.12549,136.76,136.73,8.7760176]
[1728586512184,0.12549,136.76,136.73,7.3134]
[1728586512387,7.43759,136.76,136.72,25.5995]
[1728586512583,0.12549,136.76,136.73,7.3132]
[1728586512772,0.12549,136.76,136.74,18.2821]
[1728586512977,0.12549,136.76,136.74,25.595]
[1728586513177,0.12549,136.76,136.74,18.2821]
[1728586513579,0.12549,136.76,136.74,25.5951]
[1728586513905,23.9554,136.78,136.74,25.5949]
[1728586514090,7.16099647,136.79,136.76,7.3117]
[1728586514293,1.09699647,136.79,136.76,25.5917]
[1728586514798,1.09699647,136.79,136.77,7.3112]
[1728586515377,0.12549,136.78,136.77,7.3112]
[1728586515577,1.09699647,136.79,136.77,7.3112]
[1728586518399,1.09699647,136.79,136.76,25.5918]
[1728586520683,0.12549,136.78,136.75,7.3123]
[1728586521785,0.12549,136.78,136.76,7.312]
[1728586524510,1.09699647,136.79,136.78,7.311]
[1728586525098,1.09699647,136.79,136.78,45.49441328]
[1728586525501,0.8436388,136.81,136.8,7.3099]
[1728586525806,0.8436388,136.81,136.8,46.95484464]
[1728586526902,0.8436388,136.81,136.8,53.41934464]
[1728586528519,7.3045,136.91,136.83,7.3083]
[1728586528806,7.3045,136.91,136.83,46.95278122]
[1728586528992,7.305,136.9,136.83,45.49171328]
[1728586529399,7.305,136.9,136.85,7.3068]
[1728586529596,0.25098,136.89,136.85,7.3068]
[1728586529802,0.25098,136.89,136.85,1.46123529]
[1728586529994,0.25098,136.89,136.86,7.3066]
[1728586530610,0.12549,136.89,136.87,1.46122231]
[1728586530817,0.12549,136.9,136.87,8.76715412]
[1728586531815,0.12549,136.9,136.87,7.3061]
[1728586531990,0.25098,136.9,136.87,8.76715405]
[1728586532192,0.25098,136.9,136.87,7.3061]
[1728586532512,7.55558,136.9,136.86,25.573]
[1728586532715,0.12549,136.88,136.85,7.307]
[1728586532899,0.25098,136.88,136.83,18.2697]
[1728586533395,0.25098,136.89,136.83,18.2697]
[1728586533792,7.55638,136.89,136.85,7.3071]
[1728586534715,8.65261878,136.89,136.85,7.3071]
[1728586535016,1.09623878,136.89,136.86,7.3065]
[1728586535197,1.09623878,136.89,136.85,18.2675]
[1728586535396,8.40133878,136.89,136.85,25.5746]
[1728586536101,1.09623878,136.89,136.86,7.3067]
[1728586536495,0.12549,136.88,136.86,7.3067]
[1728586537313,0.12549,136.88,136.85,18.2675]
[1728586537494,0.12549,136.88,136.85,25.5746]
[1728586537911,1.09623878,136.89,136.88,7.3056]
[1728586539192,1.09623878,136.89,136.88,31.082484]
[1728586539594,1.09623878,136.89,136.88,32.54323267]
[1728586540201,1.09584815,136.93,136.92,7.3035]
[1728586540406,1.09584815,136.93,136.92,8.76401932]
[1728586541716,1.09584815,136.93,136.91,25.5639]
[1728586542023,1.09584815,136.93,136.91,18.26]
[1728586542415,1.09584815,136.93,136.91,25.5639]
[1728586543249,0.12549,136.92,136.88,18.2632]
[1728586543419,0.12549,136.92,136.9,7.3045]
[1728586543619,0.12549,136.92,136.89,7.3048]
[1728586544018,0.12549,136.92,136.9,7.3045]
[1728586545112,0.12549,136.92,136.89,7.3049]
[1728586548922,0.12549,136.92,136.89,8.76571646]
[1728586549601,0.12549,136.92,136.89,7.3049]
[1728586549928,0.12549,136.92,136.9,7.3045]
[1728586550399,0.12549,136.92,136.89,7.305]
[1728586550744,0.12549,136.92,136.89,1.46078915]
[1728586550922,0.12549,136.92,136.9,7.3045]
[1728586556736,0.12549,136.92,136.85,15.3621]
[1728586556737,0.12549,136.89,136.85,33.6295]
[1728586557724,0.25098,136.9,136.87,7.3061]
[1728586560339,0.12549,136.9,136.88,8.76667272]
[1728586560635,0.25098,136.91,136.88,7.3056]
[1728586561020,1.09584815,136.93,136.89,1.46101943]
[1728586561218,1.09584815,136.93,136.91,7.3038]
[1728586561419,1.09584815,136.93,136.91,25.5637]
[1728586561819,1.09584815,136.93,136.91,18.2599]
[1728586562015,8.39884815,136.93,136.9,7.3042]
[1728586562256,8.39884815,136.93,136.88,18.2629]
[1728586562547,8.39884815,136.93,136.89,7.305]
[1728586562717,0.12549,136.91,136.88,25.5682]
[1728586563034,0.12549,136.92,136.9,7.3045]
[1728586563836,0.12549,136.92,136.9,25.5659]
[1728586564338,0.12549,136.92,136.91,7.304]
[1728586564937,0.12549,136.92,136.9,18.2614]
[1728586565754,0.12549,136.92,136.9,25.5658]
[1728586566122,1.09584815,136.93,136.92,7.3035]
[1728586567835,1.22133815,136.93,136.91,7.3039]
[1728586568015,0.12549,136.92,136.9,18.2614]
[1728586568325,0.12549,136.92,136.9,25.5659]
[1728586569339,0.12549,136.92,136.9,18.2614]
[1728586569839,0.12549,136.92,136.91,7.304]
[1728586570213,1.09584815,136.93,136.91,7.304]
[1728586570635,0.12549,136.92,136.91,7.304]
[1728586572820,0.12549,136.92,136.9,25.5657]
[1728586575239,0.8436388,136.95,136.92,18.2582]
[1728586575544,0.8436388,136.95,136.94,7.3024]
[1728586576830,0.8436388,136.95,136.93,7.3028]
[1728586577033,0.8436388,136.95,136.93,7.3025]
[1728586577340,0.8436388,136.95,136.93,7.3026]
[1728586577523,0.8436388,136.95,136.94,7.3024]
[1728586581249,0.8436388,136.95,136.94,45.44450398]
[1728586583034,0.8436388,136.95,136.94,31.079284]
[1728586583839,0.8436388,136.95,136.94,7.3024]
[1728586584043,0.8436388,136.95,136.94,32.53943059]
[1728586584240,0.8436388,136.95,136.93,7.3027]
[1728586584430,0.8436388,136.95,136.92,18.2582]
[1728586584940,0.8436388,136.95,136.93,7.3026]
[1728586585541,0.8436388,136.95,136.94,7.3024]
[1728586588758,0.8436388,136.95,136.94,37.417684]
[1728586593759,0.8436388,136.95,136.94,7.3024]
[1728586595139,0.8436388,136.95,136.94,31.079284]
[1728586601868,0.8436388,136.95,136.94,32.53915116]
[1728586602549,0.8436388,136.95,136.94,32.539152]
[1728586602744,0.8436388,136.95,136.94,38.673952]
[1728586602944,0.8436388,136.95,136.94,37.214084]
[1728586603294,0.8436388,136.95,136.94,38.67386007]
[1728586603563,37.74621277,137.08,136.94,38.67386007]
[1728586603564,6.0511,137.08,136.95,39.195664]
[1728586603741,15.9920388,137.09,137.06,7.2956]
[1728586603944,23.61485757,137.09,137.05,25.5376]
[1728586604143,23.61485757,137.09,137.05,18.2411]
[1728586604343,30.90965757,137.09,137.05,18.2411]
[1728586604547,30.90965757,137.09,137.05,25.5376]
[1728586604946,23.2868388,137.09,137.05,25.5376]
[1728586605563,0.8436388,137.09,137.08,31.071884]
[1728586605780,0.8436388,137.09,137.08,32.53046706]
[1728586606265,0.8436388,137.09,137.08,31.071884]
[1728586606456,0.8436388,137.09,137.08,32.53031888]
[1728586606959,0.8436388,137.09,137.08,31.071884]
[1728586607476,0.8436388,137.09,137.08,32.53045892]
[1728586608754,0.8436388,137.09,137.08,31.071884]
[1728586609074,0.8436388,137.09,137.05,7.2965]
[1728586609586,0.8436388,137.09,137.06,7.296]
[1728586609963,0.12549,137.08,137.04,18.2423]
[1728586610170,0.12549,137.08,137.04,25.539]
[1728586610583,8.1381388,137.09,137.04,18.2423]
[1728586610879,7.54648,137.08,137.03,7.2973]
[1728586611281,7.54648,137.08,137.04,8.756214]
[1728586611482,7.54648,137.08,137.04,7.297]
[1728586611665,7.54648,137.08,137.03,7.2976]
[1728586612067,0.12549,137.05,137.01,25.5445]
[1728586612274,15.3693,137.07,137.02,1.45936019]
[1728586612565,0.12549,137.06,137.03,7.2971]
[1728586612887,0.12549,137.06,137.04,8.75633033]
[1728586613183,0.12549,137.06,137.03,7.2975]
[1728586613479,0.8436388,137.09,137.04,1.45922863]
[1728586613787,0.8436388,137.09,137.05,42.017684]
[1728586613982,0.8436388,137.09,137.06,1.45892306]
[1728586614382,0.8436388,137.09,137.07,7.2955]
[1728586614686,0.8436388,137.09,137.08,31.071884]
[1728586615285,0.8436388,137.09,137.08,7.295]
[1728586616585,0.8436388,137.09,137.07,25.5337]
[1728586617082,0.8436388,137.09,137.07,18.2383]
[1728586617284,0.12549,137.08,137.04,18.2417]
[1728586617587,0.12549,137.08,137.06,7.296]
[1728586617986,0.12549,137.08,137.05,7.2964]
[1728586618568,7.54598,137.08,137.04,25.5386]
[1728586618777,0.12549,137.08,137.04,18.2417]
[1728586619087,0.12549,137.08,137.05,7.2962]
[1728586620094,7.42049,137.08,137.04,25.5384]
[1728586620269,0.12549,137.08,137.05,7.2962]
[1728586620782,0.12549,137.08,137.04,18.2417]
[1728586620984,0.12549,137.08,137.06,7.296]
[1728586621207,0.8436388,137.09,137.07,23.776884]
[1728586621373,0.8436388,137.09,137.08,53.50303989]
[1728586622501,0.8436388,137.09,137.08,31.071884]
[1728586623189,0.8436388,137.09,137.08,31.322864]
[1728586623572,0.8436388,137.09,137.08,31.071884]
[1728586623772,3.88e-05,137.09,137.08,31.322864]
[1728586623973,7.6181603,137.19,137.16,7.2906]
[1728586624177,22.0654388,137.22,137.16,8.74855214]
[1728586624178,7.2882,137.21,137.16,8.74855214]
[1728586624372,22.0654388,137.22,137.16,7.2906]
[1728586624573,7.289,137.2,137.15,25.5189]
[1728586624773,7.2892,137.19,137.15,18.2277]
[1728586624993,22.0654388,137.22,137.15,18.2277]
[1728586625203,0.12549,137.18,137.15,18.2277]
[1728586626177,0.25098,137.18,137.15,18.2277]
[1728586626490,0.25098,137.18,137.13,7.2921]
[1728586626789,0.12549,137.16,137.13,7.2923]
[1728586627971,1.09403446,137.17,137.15,7.2912]
[1728586628191,1.21952446,137.17,137.16,7.2907]
[1728586628374,1.21952446,137.17,137.11,18.233]
[1728586628375,0.12549,137.16,137.11,18.233]
[1728586628570,0.12549,137.16,137.12,7.2923]
[1728586628875,0.25098,137.16,137.12,7.2923]
[1728586629271,0.12549,137.16,137.13,7.2919]
[1728586629472,0.25098,137.16,137.13,7.2919]
[1728586629986,0.12549,137.16,137.14,8.74990464]
[1728586630169,0.12549,137.16,137.14,7.2917]
[1728586630488,0.12549,137.16,137.13,25.5226]
[1728586630690,0.12549,137.16,137.14,7.2916]
[1728586630996,0.12549,137.16,137.13,25.5225]
[1728586631488,0.12549,137.16,137.13,18.2304]
[1728586631671,0.12549,137.16,137.14,7.2916]
[1728586632868,26.36449,137.16,137.14,7.2916]
[1728586633071,25.36449,137.16,137.13,25.5226]
[1728586633572,32.65549,137.16,137.12,7.2927]
[1728586633776,25.36449,137.16,137.13,7.2923]
[1728586634094,0.12549,137.15,137.13,7.2921]
[1728586634990,25.36449,137.16,137.13,7.2921]
[1728586635369,25.36449,137.16,137.14,7.2917]
[1728586635574,25.36449,137.16,137.13,7.2922]
[1728586636175,25.36449,137.16,137.14,19.68779936]
[1728586636377,25.36449,137.16,137.15,7.2912]
[1728586636575,25.48998,137.16,137.15,7.2912]
[1728586636776,25.48998,137.16,137.14,25.5211]
[1728586636972,25.48998,137.16,137.14,18.2295]
[1728586637284,25.48998,137.16,137.14,25.5212]
[1728586637678,25.36449,137.16,137.15,7.2912]
[1728586637999,25.36449,137.16,137.15,8.74933407]
[1728586640312,25.36449,137.16,137.15,31.068084]
[1728586641703,25.36449,137.16,137.15,7.2912]
[1728586646180,25.36449,137.16,137.15,8.7492062]
[1728586647103,25.36449,137.16,137.15,31.068084]
[1728586648096,25.36449,137.16,137.15,7.2912]
[1728586649501,25.36449,137.16,137.14,18.2295]
[1728586650881,25.36449,137.16,137.15,7.2912]
[1728586651887,25.36449,137.16,137.15,8.7493411]
[1728586652688,25.36449,137.16,137.15,7.2912]
[1728586653088,25.36449,137.16,137.15,8.74925636]
[1728586653705,25.36449,137.16,137.15,7.2912]
[1728586654114,25.36449,137.16,137.15,8.74928847]
[1728586654791,25.36449,137.16,137.15,7.2912]
[1728586655206,25.36449,137.16,137.15,8.74932048]
[1728586655710,25.36449,137.16,137.15,7.2912]
[1728586655910,25.36449,137.16,137.15,8.74929395]
[1728586656207,25.36449,137.16,137.15,7.2912]
[1728586656590,25.36449,137.16,137.15,8.74929401]
[1728586657113,25.36449,137.16,137.15,7.2912]
[1728586659523,0.25098,137.15,137.12,7.2928]
[1728586659823,7.54248,137.15,137.11,25.5258]
[1728586661214,25.36449,137.16,137.11,18.2327]
[1728586661395,32.65519,137.16,137.12,7.2925]
[1728586662610,0.25098,137.15,137.12,7.2925]
[1728586663495,0.25098,137.15,137.11,18.2327]
[1728586663695,0.25098,137.15,137.13,7.292]
[1728586663896,0.25098,137.15,137.11,18.2327]
[1728586664200,0.25098,137.15,137.12,7.2926]
[1728586665804,7.54228,137.15,137.11,25.5259]
[1728586666409,1.34493041,137.15,137.11,18.2327]
[1728586666607,1.34493041,137.15,137.12,7.2927]
[1728586666819,8.63613041,137.15,137.12,7.2927]
[1728586666999,1.34493041,137.15,137.12,7.2927]
[1728586667602,1.09395041,137.15,137.14,7.2918]
[1728586667925,1.09395041,137.15,137.14,8.75003109]
[1728586669214,25.36449,137.16,137.15,7.2912]
[1728586670219,25.36449,137.16,137.15,29.64671142]
[1728586674619,25.36449,137.16,137.15,53.42359542]
[1728586676423,21.10719,137.16,137.15,53.42359542]
[1728586677811,21.10719,137.16,137.15,61.068084]
[1728586678006,21.10719,137.16,137.15,83.42359542]
[1728586680025,21.10719,137.16,137.15,84.88143985]
[1728586680527,21.10719,137.16,137.15,83.42359542]
[1728586682225,21.10719,137.16,137.15,53.42359542]
[1728586683205,0.8436388,137.22,137.17,6.1488]
[1728586683407,0.8436388,137.22,137.21,53.42039542]
[1728586683923,3.88e-05,137.22,137.21,54.87732585]
[1728586684518,3.88e-05,137.22,137.21,83.42039542]
[1728586686330,3.88e-05,137.22,137.21,54.87729492]
[1728586686705,3.88e-05,137.22,137.21,7.288]
[1728586688225,3.88e-05,137.22,137.21,8.74517741]
[1728586688629,3.88e-05,137.22,137.21,7.288]